Cogmind - Beta 11 X6 @@@ ROGUE MODE // 2021.08.11 @ 10:07:34 Player: Olga Result: Destroyed self with Mini Grenade Launcher Performance ------------- Evolutions (1) 500 Regions Visited (6) 1200 Robots Destroyed (58) 290 Value Destroyed (1607) 1607 Prototype IDs (23) 460 Alien Tech Used (0) 0 Bonus (319) 319 TOTAL SCORE: 4376 Bonus ------- High Alert Combat Kills 19 Aligned with FarCom 300 Cogmind --------- Core Integrity 0/400 Matter 210/300 Energy 265/265 System Corruption 0% Temperature Cool (0) Movement Walking (120) Location -8/Mines Parts ------- > --- POWER (1) -------- Improved Ion Engine > --- PROPULSION (3) --- Aluminum Leg Aluminum Leg Aluminum Leg > --- UTILITY (3) ------ Medium Storage Unit Signal Interpreter Hardened Light Armor Plating > --- WEAPON (2) ------- Mini Grenade Launcher Mini Grenade Launcher > --- INVENTORY (10) --- Ion Engine Aluminum Leg Aluminum Leg Improved Aluminum Leg Flying Fortress v7 Light Armor Plating Light Assault Rifle Peak State ------------ > --- POWER ------------ Improved Ion Engine > --- PROPULSION ------- Aluminum Leg Aluminum Leg Aluminum Leg > --- UTILITY ---------- Medium Storage Unit Signal Interpreter Hardened Light Armor Plating > --- WEAPON ----------- Mini Grenade Launcher Mini Grenade Launcher > --- INVENTORY -------- Ion Engine Aluminum Leg Aluminum Leg Improved Aluminum Leg Flying Fortress v7 Light Armor Plating Light Assault Rifle [Rating: 16] Favorites ----------- Power Ion Engine Engine Ion Engine Propulsion Aluminum Leg Leg Aluminum Leg Utility Signal Interpreter Storage Medium Storage Unit Processor Signal Interpreter Protection Hardened Light Armor Plating Weapon Mini Grenade Launcher Ballistic Gun Assault Rifle Ballistic Cannon Light Cannon Launcher Mini Grenade Launcher Special Weapon Plasma Flamer Build | -11 -10 -10 -9 -9 -9 -8 ------- Run | Scr Mat Min Mat Min Exi Min Slots Evolved 2 | . . . 2 . . . Power . | . . . . . . . Propulsion 1 | . . . 1 . . . Utility 1 | . . . 1 . . . Weapon . | . . . . . . . Parts Attached 44 | . 8 . 35 1 . . Power 6 | . 1 . 5 . . . Engine 6 | . 1 . 5 . . . Core . | . . . . . . . Reactor . | . . . . . . . Propulsion 18 | . 3 . 15 . . . Treads . | . . . . . . . Leg 18 | . 3 . 15 . . . Wheel . | . . . . . . . Hover . | . . . . . . . Flight . | . . . . . . . Utility 6 | . 2 . 4 . . . Device . | . . . . . . . Storage 1 | . 1 . . . . . Processor 1 | . 1 . . . . . Hackware . | . . . . . . . Protection 4 | . . . 4 . . . Artifact . | . . . . . . . Weapon 14 | . 2 . 11 1 . . Energy Gun . | . . . . . . . Energy Cannon . | . . . . . . . Ballistic Gun 4 | . 1 . 3 . . . Ballistic Cannon 4 | . 1 . 3 . . . Launcher 5 | . . . 4 1 . . Special Weapon 1 | . . . 1 . . . Impact Weapon . | . . . . . . . Slashing Weapon . | . . . . . . . Piercing Weapon . | . . . . . . . Special Melee Weapon . | . . . . . . . Unidentified Prototypes . | . . . . . . . Parts Lost 18 | . 5 . 13 . . . Power 3 | . 1 . 2 . . . Propulsion 7 | . 2 . 5 . . . Utility 1 | . . . 1 . . . Weapon 7 | . 2 . 5 . . . Highest Loss Streak 8 | . 3 . 8 . . . Average Slot Usage (%) 93 | . 83 100 91 98 100 100 Engine 11 | . 13 14 10 11 11 11 Leg 30 | . 25 28 31 33 33 33 Storage 11 | . 14 14 11 11 11 11 Processor 10 | . 4 14 11 11 11 11 Protection 6 | . . . 8 11 11 11 Ballistic Gun 8 | . 24 14 7 . . . Ballistic Cannon 5 | . . 14 8 . . . Launcher 7 | . . . 1 20 22 22 Naked Turns . | . . . . . . . Heaviest Build 26 | 10 20 20 26 24 24 24 Greatest Support 30 | 20 20 20 30 30 30 30 Greatest Overweight (x) 2 | . 2 . 2 . . . Average Overweight (x) . | . . . . . . . Largest Inventory Capacity 10 | . 10 10 10 10 10 10 Average Capacity 9 | . 8 10 10 10 10 10 Most Carried 10 | . 10 10 10 10 10 10 Average Carried 9 | . 6 10 9 9 9 10 Final Capacity 10 | 8 10 10 10 10 10 10 Final Carried 10 | 6 10 10 9 10 10 10 Class Distribution -------------------- 61% | Scavenger-Mutant 38% | Mutant Dominant Class ---------------- Mutant | -10/Materials Mutant | -10/Mines Scavenger-Mutant | -9/Materials Scavenger-Mutant | -9/Mines Scavenger-Mutant | -9/Exiles Scavenger-Mutant | -8/Mines Resources | -11 -10 -10 -9 -9 -9 -8 ----------- Run | Scr Mat Min Mat Min Exi Min Matter Collected 1107 | 186 223 20 653 25 . . Remotely . | . . . . . . . Salvage Created 1588 | . 663 . 871 21 . 33 Parts 116 | . 33 . 61 5 . 17 Haulers Intercepted 2 | . . . 2 . . . Recyclers Shooed . | . . . . . . . Parts Field Recycled . | . . . . . . . Retrieved Matter . | . . . . . . . Parts Self-Destructed . | . . . . . . . Prevented . | . . . . . . . Kills | -11 -10 -10 -9 -9 -9 -8 ------- Run | Scr Mat Min Mat Min Exi Min Combat Hostiles Destroyed 55 | . 16 . 26 3 . 10 Guns 23 | . 16 . 7 . . . Cannons 15 | . . . 15 . . . AOE 17 | . . . 4 3 . 10 Classes Destroyed 6 | . 1 . 5 . . . Builder 1 | . . . 1 . . . Hauler 2 | . . . 2 . . . Swarmer 17 | . . . 4 3 . 10 Grunt 32 | . 16 . 16 . . . Brawler 1 | . . . 1 . . . Sentry 5 | . . . 5 . . . Best Kill Streak 8 | . 8 . 7 3 . 6 Combat Bots Only 8 | . 8 . 4 3 . 6 Max Kills in Single Turn 4 | . 1 . 4 3 . 3 Gunslinging . | . . . . . . . Exploded 3 | . . . 3 3 . 3 Melee . | . . . . . . . Uniques/NPCs Destroyed . | . . . . . . . Combat | -11 -10 -10 -9 -9 -9 -8 -------- Run | Scr Mat Min Mat Min Exi Min Damage Taken 2802 | . 648 . 2017 6 . 131 Core 503 | . 100 . 353 . . 50 Absorbed by Shields . | . . . . . . . Core Remaining (%) 80 | 100 . 60 . . . . Volleys Fired 139 | . 61 . 72 1 . 5 Largest 2 | . 2 . 2 2 . 2 Hottest 135 | . 40 . 135 60 . 60 Shots Fired 255 | . 115 . 129 2 . 9 Gun 163 | . 115 . 48 . . . Cannon 67 | . . . 67 . . . Launcher 18 | . . . 7 2 . 9 Special 7 | . . . 7 . . . Kinetic 230 | . 115 . 115 . . . Thermal 7 | . . . 7 . . . Explosive 18 | . . . 7 2 . 9 Electromagnetic . | . . . . . . . Robot Hit Streak 22 | . 19 . 21 22 . 2 Robot Miss Streak 6 | . 2 . 6 . . 3 Penetration Max . | . . . . . . . Secondary Targets . | . . . . . . . Shots Hit Robots 175 | . 92 . 80 1 . 2 Core Hits 102 | . 38 . 45 6 . 13 Critical Kills 1 | . 1 . . . . . Critical Parts Destroyed 2 | . 2 . . . . . Critical Strikes 5 | . 3 . 2 . . . Destroy 3 | . 3 . . . . . Blast 2 | . . . 2 . . . Melee Attacks . | . . . . . . . Impact . | . . . . . . . Slashing . | . . . . . . . Piercing . | . . . . . . . Sneak Attacks . | . . . . . . . Combat Hostiles . | . . . . . . . Follow-up Attacks . | . . . . . . . Damage Inflicted 3623 | . 850 . 1939 165 . 669 Guns 1264 | . 844 . 420 . . . Cannons 813 | . . . 813 . . . Explosions 1361 | . . . 550 142 . 669 Melee . | . . . . . . . Ramming 107 | . 6 . 78 23 . . Kinetic 2077 | . 844 . 1233 . . . Thermal 78 | . . . 78 . . . Explosive 1361 | . . . 550 142 . 669 Electromagnetic . | . . . . . . . Impact . | . . . . . . . Slashing . | . . . . . . . Piercing . | . . . . . . . Highest Corruption . | . . . . . . . Average Corruption . | . . . . . . . Corruption Purged . | . . . . . . . Overload Shots . | . . . . . . . Overflow Damage 71 | . . . 51 . . 20 Projectiles . | . . . . . . . Explosions 71 | . . . 51 . . 20 Melee . | . . . . . . . Knockbacks 8 | . . . 7 1 . . Impact 1 | . . . . 1 . . Kinetic 6 | . . . 6 . . . Secondary 1 | . . . 1 . . . Self-Inflicted Damage 76 | . . . 54 . . 22 Shots 4 | . . . 3 . . 1 Rammed . | . . . . . . . Targets Rammed 50 | . 2 . 42 6 . . Kicked 50 | . 2 . 42 6 . . Crushed . | . . . . . . . Highest Temperature 258 | . 25 . 258 9 . 18 Average Temperature 30 | . 8 . 41 6 . 7 Received Heat Transfer 1173 | . 375 . 798 . . . Effects 1 | . . . 1 . . . Energy Bleed 1 | . . . 1 . . . Siege Activations . | . . . . . . . Robots Corrupted . | . . . . . . . Combat Hostiles . | . . . . . . . Parts Fried . | . . . . . . . Impact Corruptions . | . . . . . . . Robots Melted . | . . . . . . . Combat Hostiles . | . . . . . . . Parts Melted . | . . . . . . . Heat Transferred 480 | . . . 480 . . . Parts Sabotaged . | . . . . . . . Parts Stolen . | . . . . . . . Parts Stripped . | . . . . . . . Power Chain Reactions . | . . . . . . . Missiles Intercepted . | . . . . . . . Alert | -11 -10 -10 -9 -9 -9 -8 ------- Run | Scr Mat Min Mat Min Exi Min Peak Influence 422 | . 365 70 422 232 . 248 Initial 162 | . . 70 . 162 . . Average 183 | . 209 50 276 118 . 103 Maximum Alert Level 2 | . 1 . 2 1 . 1 Low Security (%) 61 | . 58 100 28 90 . 80 Level 1 35 | . 41 . 64 9 . 20 Level 2 3 | . . . 7 . . . Level 3 . | . . . . . . . Level 4 . | . . . . . . . Level 5 . | . . . . . . . High Security . | . . . . . . . Max Security . | . . . . . . . Squads Dispatched 12 | . 6 . 5 1 . . Investigation 6 | . 4 . 2 . . . Extermination . | . . . . . . . Reinforcement 6 | . 2 . 3 1 . . Assault . | . . . . . . . Garrison . | . . . . . . . Intercept . | . . . . . . . Construction Impeded 2 | . . . 1 1 . . Haulers Reinforced . | . . . . . . . Active Scanning Responses . | . . . . . . . Cargo Convoy Interrupts . | . . . . . . . Stealth | -11 -10 -10 -9 -9 -9 -8 --------- Run | Scr Mat Min Mat Min Exi Min Distress Signals 5 | . 1 . 4 . . . Communications Jammed . | . . . . . . . Distress Signals . | . . . . . . . Times Spotted 72 | . 22 . 40 2 . 8 Peak Tracking Total 10 | . 7 . 10 3 . 4 Tactical Retreats . | . . . . . . . Traps | -11 -10 -10 -9 -9 -9 -8 ------- Run | Scr Mat Min Mat Min Exi Min Traps Triggered 4 | . 3 . 1 . . . Indirectly . | . . . . . . . Trap Hack Attempts . | . . . . . . . Triggered . | . . . . . . . Disarmed . | . . . . . . . Reprogrammed . | . . . . . . . Reused . | . . . . . . . Traps Extracted . | . . . . . . . Installed . | . . . . . . . Triggered . | . . . . . . . Machines | -11 -10 -10 -9 -9 -9 -8 ---------- Run | Scr Mat Min Mat Min Exi Min Machines Disabled 4 | . . . 4 . . . Max in Single Turn 2 | . . . 2 . . . Machines Sabotaged . | . . . . . . . Garrisons Compromised . | . . . . . . . Overloaded Fab Kills . | . . . . . . . Fab Network Shutdowns . | . . . . . . . Hacking | -11 -10 -10 -9 -9 -9 -8 --------- Run | Scr Mat Min Mat Min Exi Min Machines Accessed 10 | . 3 . 6 . 1 . Terminals 7 | . 3 . 4 . . . Fabricators . | . . . . . . . Repair Stations 1 | . . . 1 . . . Recycling Units 1 | . . . 1 . . . Scanalyzers . | . . . . . . . Garrison Access . | . . . . . . . Total Hacks 21 | . 7 . 13 . 1 . Successful 11 | . 1 . 9 . 1 . Failed 10 | . 6 . 4 . . . Catastrophic 2 | . 2 . . . . . Database Lockouts . | . . . . . . . Manual 19 | . 7 . 11 . 1 . Terminals 17 | . 7 . 10 . . . Fabricators . | . . . . . . . Repair Stations 2 | . . . 2 . . . Recycling Units 1 | . . . 1 . . . Scanalyzers . | . . . . . . . Garrison Access . | . . . . . . . Terminal Hacks 2 | . . . 1 . 1 . Branch Access Points 1 | . . . 1 . . . EX-Prototype ID Bank 1 | . . . . . 1 . Fabricator Hacks . | . . . . . . . Repair Station Hacks 2 | . . . 2 . . . Scan Component 1 | . . . 1 . . . Repair 1 | . . . 1 . . . Recycling Unit Hacks . | . . . . . . . Scanalyzer . | . . . . . . . Garrison Access Hacks . | . . . . . . . Unauthorized Hacks 7 | . 1 . 6 . . . Terminals 6 | . 1 . 5 . . . Botnet 4 | . 1 . 3 . . . Detonate 2 | . . . 2 . . . Fabricators . | . . . . . . . Repair Stations . | . . . . . . . Recycling Units 1 | . . . 1 . . . Tunnel 1 | . . . 1 . . . Scanalyzers . | . . . . . . . Garrison Access . | . . . . . . . Data Cores Recovered . | . . . . . . . Used . | . . . . . . . Hacking Detections 7 | . 3 . 4 . . . Full Trace Events 3 | . 3 . . . . . Feedback Events . | . . . . . . . Feedback Blocked . | . . . . . . . Robot Schematics Acquired . | . . . . . . . Robots Built . | . . . . . . . Matter . | . . . . . . . Time . | . . . . . . . Total Robot Build Rating . | . . . . . . . Part Schematics Acquired . | . . . . . . . Parts Built . | . . . . . . . Matter . | . . . . . . . Time . | . . . . . . . Total Part Build Rating . | . . . . . . . Parts Repaired 1 | . . . 1 . . . Time 32 | . . . 32 . . . Parts Recycled . | . . . . . . . Recycled Matter . | . . . . . . . Retrieved Matter . | . . . . . . . Retrieved Components . | . . . . . . . Parts Scanalyzed . | . . . . . . . Part Schematics Acquired . | . . . . . . . Parts Damaged . | . . . . . . . Bothacking | -11 -10 -10 -9 -9 -9 -8 ------------ Run | Scr Mat Min Mat Min Exi Min Used RIF Installer . | . . . . . . . Robots Hacked . | . . . . . . . Non-combat . | . . . . . . . Combat . | . . . . . . . Robot Hacks Applied . | . . . . . . . Relay Couplers Released . | . . . . . . . Robots Rewired . | . . . . . . . Allies Hacked . | . . . . . . . Hacks Repelled . | . . . . . . . Allies | -11 -10 -10 -9 -9 -9 -8 -------- Run | Scr Mat Min Mat Min Exi Min Total Allies . | . . . . . . . Largest Group . | . . . . . . . Highest-Rated Group . | . . . . . . . Highest-Rated Ally . | . . . . . . . Total Orders . | . . . . . . . Ally Attacks . | . . . . . . . Total Damage . | . . . . . . . Kills . | . . . . . . . Allies Corrupted . | . . . . . . . Allies Melted . | . . . . . . . Intel | -11 -10 -10 -9 -9 -9 -8 ------- Run | Scr Mat Min Mat Min Exi Min Robot Analysis Total . | . . . . . . . Derelict Logs Recovered 2 | . . 1 . 1 . . Drone Launches . | . . . . . . . Drone Recoveries . | . . . . . . . Exploration | -11 -10 -10 -9 -9 -9 -8 ------------- Run | Scr Mat Min Mat Min Exi Min Turns Passed 3206 | . 486 558 1175 647 265 75 Spaces Moved 2095 | 1 230 463 606 524 219 52 Core 5 | . 5 . . . . . Treads . | . . . . . . . Legs 2090 | 1 225 463 606 524 219 52 Wheels . | . . . . . . . Hover . | . . . . . . . Flight . | . . . . . . . Fastest Speed 120 | 120 120 120 120 120 120 120 Average Speed 120 | 120 121 120 121 120 120 120 Slowest Speed 280 | 120 200 120 280 120 120 120 Overloaded Moves . | . . . . . . . Propulsion Burnouts . | . . . . . . . Robots Hopped . | . . . . . . . Cave-ins Triggered . | . . . . . . . Exploration Rate (%) 52 | 2 50 92 49 94 61 21 Regions Visited 6 Branch Regions 4 Pre-discovered Areas 2 | . . . 1 1 . . Known Exits Taken 5 | . 1 1 1 1 1 . Unknown Exits Taken 1 | 1 . . . . . . Scrap Searched 3 | . . 1 . 2 . . Spaces Dug . | . . . . . . . Terrain Destroyed 173 | . . . 73 26 . 74 Melee . | . . . . . . . Projectile . | . . . . . . . AOE 173 | . . . 73 26 . 74 Terrain Rammed . | . . . . . . . Walls Destroyed . | . . . . . . . Machines Disabled . | . . . . . . . Actions | -11 -10 -10 -9 -9 -9 -8 --------- Run | Scr Mat Min Mat Min Exi Min Total 2536 | . 341 466 908 541 223 57 Wait 145 | . 21 2 118 4 . . Move 2089 | . 229 462 605 523 218 52 Hop . | . . . . . . . Pick Up 37 | . 14 1 17 4 1 . Fast Attach 7 | . 3 . 4 . . . Attach 18 | . 4 . 13 1 . . Detach . | . . . . . . . Swap 19 | . 1 . 18 . . . Drop 32 | . 6 1 19 2 4 . Fire 139 | . 61 . 72 1 . 5 Melee . | . . . . . . . Ram . | . . . . . . . Kick 50 | . 2 . 42 6 . . Crush . | . . . . . . . Escape Stasis . | . . . . . . . Rewire . | . . . . . . . Trap . | . . . . . . . Miscellaneous . | . . . . . . . Route ------- -11/Scrapyard -10/Materials (discovered 2 exits: *Mat / *Min) -10/Mines (discovered 2 exits: *Mat x2) -9/Materials (discovered 3 exits: [*Mat] / *Min / Sto) -9/Mines (discovered 3 exits: [*Mat x2] / *Exi) -9/Exiles -8/Mines History --------- Turn | Location | Event 1 | -11/Scrapyard | Discovered new exit (range 0) 1 | -11/Scrapyard | Entered Materials 157 | -10/Materials | Destroyed 8 combat bots 248 | -10/Materials | Lost 3 parts (1p2n) 314 | -10/Materials | Build established: Mutant 316 | -10/Materials | Discovered new exit (range 7) 333 | -10/Materials | Identified exit to Materials 453 | -10/Materials | Discovered new exit (range 16) 485 | -10/Materials | Identified exit to Mines 487 | -10/Materials | Entered Mines 494 | -10/Mines | Received a Rocket Launcher from a helpful Derelict 540 | -10/Mines | Learned Materials stockpile data 631 | -10/Mines | A weapon hastily lodged in a ceiling crevice suddenly fell to the ground 1031 | -10/Mines | Discovered exit to Materials (range 12) 1044 | -10/Mines | Discovered exit to Materials (range 7) 1045 | -10/Mines | Entered Materials 1045 | -9/Materials | Evolved 2 slots: Propulsion x1, Utility x1 1056 | -9/Materials | Identified exit to Mines 1056 | -9/Materials | Identified exit to Storage 1521 | -9/Materials | Build established: Scavenger-Mutant 1665 | -9/Materials | Discovered new exit (range 4) 1759 | -9/Materials | Repaired Hrd. Light Armor Plating 1935 | -9/Materials | Lost 3 parts (1u2w) 1978 | -9/Materials | Core integrity fell below 50% 2052 | -9/Materials | Core integrity fell below 20% 2073 | -9/Materials | Lost 8 parts (2p4n2w) 2220 | -9/Materials | Entered Mines 2431 | -9/Mines | Learned location of Storage (-9) 2475 | -9/Mines | Discovered new exit (range 6) 2811 | -9/Mines | Discovered new exit (range 8) 2861 | -9/Mines | Deemed a non-threat by the Exiles lab entrance 2862 | -9/Mines | Discovered new exit (range 5) 2866 | -9/Mines | Identified exit to Exiles 2867 | -9/Mines | Entered Exiles 2896 | -9/Exiles | Met 8R-AWN 2917 | -9/Exiles | Met EX-HEX 2956 | -9/Exiles | Met EX-BIN 2973 | -9/Exiles | Aligned with FarCom system 2974 | -9/Exiles | Given EX-Vault access code 3003 | -9/Exiles | Opened EX-Vault 3014 | -9/Exiles | Found Flying Fortress v7 3040 | -9/Exiles | Warned to stay clear of 0b10 Research branches 3073 | -9/Exiles | Met EX-DEC 3122 | -9/Exiles | Discovered new exit (range 10) 3131 | -9/Exiles | Identified exit to Mines 3132 | -9/Exiles | Left Exiles lab with Flying Fortress v7 3132 | -9/Exiles | Entered Mines 3207 | -8/Mines | Destroyed self with Mini Grenade Launcher Last Messages --------------- your atomic chain! 03075_ EX-DEC: "Oops, I hope HEX didn't hear that..." 03122_ EXIT=FOUND 03131_ EXIT=IDENTIFIED: MINES LOCATION=MINES GOAL=ESCAPE 03132_ Receiving FarCom transmissions... 03158_ S-10 Pest destroyed. 03158_ Destroyed Lgt. Ion Engine. 03161_ S-10 Pest destroyed. 03172_ The unstable cave ceiling collapses. 03187_ U-05 Engineer lays Concrete. 03188_ Destroyed Lgt. Ion Engine. 03188_ S-10 Pest destroyed. 03202_ The unstable cave ceiling collapses. 03206_ R-06 Scavenger collects Flight Unit. 03207_ The unstable cave ceiling collapses. 03207_ S-10 Pest destroyed. 03207_ Destroyed Lgt. Ion Engine. 03207_ S-10 Pest destroyed. Map ----- +----------------------------------------------------+ | ?????????????????????????????????????????????????? | | ?????????????????????????????????????????????????? | | ?????????????????????????????????????????????????? | | ?????????????????????????????????????????????????? | | ?????????????????????????????????????????????????? | | ?????????????????????????????????????????????????? | | ?????????????????????????????????????????????????? | | ?????????????????????????????????????????????????? | | ?????????????????????????????????????????????????? | | ?????????????????????????????????????????????????? | | ?????????????????????????????????????????????????? | | ??????????????????????????????#??????????????????? | | ????????????????????????????? #??????????????????? | | ????????????????????????????? #??????????????????? | | ????????????????????????????# ##?????????????????? | | ????????????????????????#### ##?#??????????????? | | ???????????????????????## # ###????????????? | | ???????????????????##### #???????????? | | ???????????????????# #?????????????????? | | ???????????????????# ### t #????? ???????????? | | ??????############## #### #?##? #???????????? | | ???? $ ## # ##??????????? | | ???????????### ## = * #??????????? | | ######?????### ## ###### % ##?????????? | | #????## # ###### r *== #?????????? | | #?#### ## @ # * #????????? | | ## ### ## #???????? | | ## ## # #???????? | | ## ## [ # s # #????????? | | # #### # %=## ##????????? | | #########?# # [= ## %= #?????????? | | #?????????# ### %######?? #?????????? | | ##?????????## ##?# #???????? ##?????????? | | ##???????????### ###??# #??????????#??????????? | | #??????????????## #????# #?????????????????????? | | ????????????????? #????# #?????????????????????? | | ????????????????? #????# #?????????????????????? | | ????????????????? #????# #?????????????????????? | | ????????????????? #????? #?????????????????????? | | ?????????????????###????? #?????????????????????? | | ????????????????????????? ?????????????????????? | | ?????????????????????????###?????????????????????? | | ?????????????????????????????????????????????????? | | ?????????????????????????????????????????????????? | | ?????????????????????????????????????????????????? | | ?????????????????????????????????????????????????? | | ?????????????????????????????????????????????????? | | ?????????????????????????????????????????????????? | | ?????????????????????????????????????????????????? | | ?????????????????????????????????????????????????? | +----------------------------------------------------+ Best States ------------- Heat Dissipation 28 Energy Generation 12 Energy Capacity 265 Matter Stores 300 Matter Capacity 300 Sight Range 16 Terrain Scan Density 10 Armor Coverage 150 Core Shielding 20 Evasion (%) 55 Item Schematics ----------------- None Robot Schematics ------------------ None Fabricated ------------ Nothing Alien Tech Used ----------------- None Achievements -------------- None Challenges ------------ None Game ------ Seed VortexMappingMace Manual? 0 Play Time 00:25:07 Cumulative 60.8 hours Start 2021.08.11 @ 09:43:04 End 2021.08.11 @ 10:07:34 Sessions 1 Manual Loads 0 Difficulty Rogue Special Mode None Game No. 75 Rogue 75 Adventurer 0 Explorer 0 Win Type - Total 0 Types 0/0/0/0/0/0/0/0/0 Lore% 49 Gallery% 44 Achievement% 37 Wizard Run 0 Options --------- ASCII 1 Keyboard 0 Movement Vi Keybinds 0 Fullscreen 2 Font 18/SmallcapsGlow Map View 76x50 Tactical HUD 1 Map Filters NONE Filters NONE Steam 1 RUN: 90c6781c-b913-49a1-b0f2-fabf617c20e9